Cogmind - Beta 9.1 *** ADVENTURER MODE // 2019.11.11 @ 19:20:05 Player: toad3k Result: Self-destructed Performance ------------- Evolutions (3) 1500 Regions Visited (4) 800 Robots Destroyed (10) 50 Value Destroyed (235) 235 Prototype IDs (4) 80 Alien Tech Used (0) 0 Bonus (0) 0 TOTAL SCORE: 2665 Bonus ------- None Cogmind --------- Core Integrity 700/700 Matter 253/300 Energy 200/200 System Corruption 0% Temperature Cool (16) Location -7/Factory Parts ------- Power (2) Light Deuterium Engine Light Nuclear Core Propulsion (4) Aluminum Leg Aluminum Leg Improved Carbon-fiber Leg Utility (5) Small Storage Unit Targeting Computer Hacking Suite Hacking Suite Weapon (2) Inventory (6) Improved Heat Sink Hacking Suite Hacking Suite Peak State ------------ Power Light Deuterium Engine Light Nuclear Core Propulsion Aluminum Leg Aluminum Leg Improved Carbon-fiber Leg Utility Small Storage Unit Targeting Computer Hacking Suite Hacking Suite Weapon Particle Cannon Inventory Improved Heat Sink Hacking Suite Hacking Suite [Rating: 22] Favorites ----------- Power Ion Engine Engine Ion Engine Power Core Light Nuclear Core Propulsion Hover Unit Leg Aluminum Leg Wheel Compact Wheel Hover Unit Hover Unit Utility Hacking Suite Storage Small Storage Unit Processor Signal Interpreter Hackware Hacking Suite Weapon Small Laser Energy Gun Small Laser Energy Cannon Particle Cannon Build | -11 -10 -9 -8 -7 ------- Run | Scr Mat Mat Mat Fac Slots Evolved 6 | . . 2 2 2 Power 1 | . . . 1 . Propulsion 2 | . . 1 . 1 Utility 3 | . . 1 1 1 Weapon . | . . . . . Parts Attached 21 | 6 4 2 6 3 Power 3 | 1 . . 1 1 Engine 2 | 1 . . . 1 Core 1 | . . . 1 . Reactor . | . . . . . Propulsion 7 | 2 2 . 2 1 Treads . | . . . . . Leg 3 | . . . 2 1 Wheel 2 | 2 . . . . Hover 2 | . 2 . . . Flight . | . . . . . Utility 5 | 1 1 2 . 1 Device . | . . . . . Storage 1 | 1 . . . . Processor 2 | . 1 . . 1 Hackware 2 | . . 2 . . Protection . | . . . . . Artifact . | . . . . . Weapon 6 | 2 1 . 3 . Energy Gun 4 | 2 1 . 1 . Energy Cannon 2 | . . . 2 . Ballistic Gun . | . . . . . Ballistic Cannon . | . . . . . Launcher . | . . . . . Special Weapon . | . . . . . Impact Weapon . | . . . . . Slashing Weapon . | . . . . . Piercing Weapon . | . . . . . Special Melee Weapon . | . . . . . Unidentified Prototypes 1 | . . . 1 . Parts Lost 7 | . 1 . 5 1 Power 1 | . . . 1 . Propulsion 2 | . . . 2 . Utility . | . . . . . Weapon 4 | . 1 . 2 1 Highest Loss Streak 3 | . 1 . 3 1 Average Slot Usage (%) 82 | . 95 87 65 64 Engine 10 | . 14 11 9 5 Core 1 | . . . . 7 Leg 4 | . . . 1 17 Wheel 7 | . 18 . . . Hover 10 | . 9 22 15 . Storage 11 | . 14 11 9 7 Processor 4 | . 9 . . 2 Hackware 10 | . . 20 18 15 Energy Gun 17 | . 28 22 7 . Energy Cannon 2 | . . . 4 7 Naked Turns . | . . . . . Heaviest Build 18 | 12 12 11 18 18 Greatest Support 38 | 26 26 12 20 38 Greatest Overweight (x) 1 | . 1 . 1 . Average Overweight (x) . | . . . . . Largest Inventory Capacity 6 | 6 6 6 6 6 Average Capacity 5 | 5 6 6 6 6 Most Carried 6 | 1 6 6 6 3 Average Carried 3 | . 3 5 5 3 Final Capacity 6 | 6 6 6 6 6 Final Carried 6 | 1 6 6 3 3 Class Distribution -------------------- 53% | Hacker-Mutant 46% | Mutant Dominant Class ---------------- Mutant | -10/Materials Hacker-Mutant | -9/Materials Hacker-Mutant | -8/Materials Hacker-Mutant | -7/Factory Resources | -11 -10 -9 -8 -7 ----------- Run | Scr Mat Mat Mat Fac Matter Collected 328 | 137 158 . 33 . Remotely . | . . . . . Salvage Created 338 | . 305 . 33 . Parts 25 | . 20 . 5 . Haulers Intercepted 1 | . 1 . . . Recyclers Shooed . | . . . . . Parts Field Recycled . | . . . . . Retrieved Matter . | . . . . . Parts Self-Destructed . | . . . . . Prevented . | . . . . . Kills | -11 -10 -9 -8 -7 ------- Run | Scr Mat Mat Mat Fac Combat Hostiles Destroyed 7 | . 7 . . . Guns 7 | . 7 . . . Classes Destroyed 4 | . 4 . . . Hauler 1 | . 1 . . . Watcher 2 | . 1 . 1 . Swarmer 3 | . 3 . . . Grunt 4 | . 4 . . . Best Kill Streak 4 | . 4 . 1 . Combat Bots Only 3 | . 3 . . . Max Kills in Single Turn 1 | . 1 . 1 . Gunslinging . | . . . . . Exploded . | . . . . . Melee . | . . . . . Uniques/NPCs Destroyed . | . . . . . Combat | -11 -10 -9 -8 -7 -------- Run | Scr Mat Mat Mat Fac Damage Taken 645 | . 173 16 364 92 Core 56 | . 12 8 36 . Absorbed by Shields . | . . . . . Core Remaining (%) 96 | 100 95 98 93 . Volleys Fired 33 | . 25 2 4 2 Largest 2 | . 2 2 2 1 Hottest 80 | . 80 80 80 68 Shots Fired 62 | . 50 4 6 2 Gun 58 | . 50 4 4 . Cannon 4 | . . . 2 2 Launcher . | . . . . . Special . | . . . . . Kinetic . | . . . . . Thermal 52 | . 40 4 6 2 Explosive . | . . . . . Electromagnetic 10 | . 10 . . . Robot Hit Streak 10 | . 10 1 7 1 Robot Miss Streak 3 | . 2 3 . 1 Penetration Max . | . . . . . Secondary Targets . | . . . . . Shots Hit Robots 46 | . 37 2 6 1 Core Hits 19 | . 17 . 2 . Critical Hits . | . . . . . Critical Kills . | . . . . . Critical Parts Destroyed . | . . . . . Melee Attacks . | . . . . . Impact . | . . . . . Slashing . | . . . . . Piercing . | . . . . . Sneak Attacks . | . . . . . Combat Hostiles . | . . . . . Follow-up Attacks . | . . . . . Damage Inflicted 506 | . 424 . 61 21 Guns 444 | . 424 . 20 . Cannons 62 | . . . 41 21 Explosions . | . . . . . Melee . | . . . . . Ramming . | . . . . . Kinetic . | . . . . . Thermal 404 | . 322 . 61 21 Explosive . | . . . . . Electromagnetic 102 | . 102 . . . Impact . | . . . . . Slashing . | . . . . . Piercing . | . . . . . Highest Corruption 1 | . 1 . . . Average Corruption 1 | . 1 . . . Corruption Purged . | . . . . . Overload Shots . | . . . . . Overflow Damage . | . . . . . Projectiles . | . . . . . Explosions . | . . . . . Melee . | . . . . . Knockbacks . | . . . . . Impact . | . . . . . Kinetic . | . . . . . Secondary . | . . . . . Self-Inflicted Damage . | . . . . . Shots . | . . . . . Rammed . | . . . . . Targets Rammed . | . . . . . Kicked . | . . . . . Crushed . | . . . . . Highest Temperature 168 | . 168 32 49 52 Average Temperature 52 | . 59 18 15 30 Received Heat Transfer 222 | . 102 12 108 . Siege Activations . | . . . . . Robots Corrupted . | . . . . . Combat Hostiles . | . . . . . Parts Fried . | . . . . . Impact Corruptions . | . . . . . Robots Melted . | . . . . . Combat Hostiles . | . . . . . Parts Melted . | . . . . . Heat Transferred 886 | . 725 . 124 37 Parts Sabotaged . | . . . . . Parts Stolen . | . . . . . Parts Stripped . | . . . . . Power Chain Reactions . | . . . . . Missiles Intercepted . | . . . . . Alert | -11 -10 -9 -8 -7 ------- Run | Scr Mat Mat Mat Fac Peak Influence 237 | . 237 88 46 15 Average Influence 56 | . 91 85 35 1 Maximum Alert Level 1 | . 1 . . . Low Security (%) 93 | . . . . . Level 1 6 | . . . . . Level 2 . | . . . . . Level 3 . | . . . . . Level 4 . | . . . . . Level 5 . | . . . . . High Security . | . . . . . Max Security . | . . . . . Squads Dispatched 3 | . . 1 2 . Investigation 1 | . . . 1 . Extermination . | . . . . . Reinforcement 2 | . . 1 1 . Assault . | . . . . . Garrison . | . . . . . Intercept . | . . . . . Construction Impeded . | . . . . . Haulers Reinforced . | . . . . . Stealth | -11 -10 -9 -8 -7 --------- Run | Scr Mat Mat Mat Fac Distress Signals 1 | . . . 1 . Communications Jammed . | . . . . . Distress Signals . | . . . . . Times Spotted 29 | . 10 6 9 4 Peak Tracking Total 6 | . 3 5 6 4 Tactical Retreats 2 | . 2 . . . Traps | -11 -10 -9 -8 -7 ------- Run | Scr Mat Mat Mat Fac Traps Triggered 3 | . 2 . 1 . Indirectly . | . . . . . Trap Hack Attempts . | . . . . . Triggered . | . . . . . Disarmed 5 | . 5 . . . Reprogrammed . | . . . . . Reused . | . . . . . Traps Extracted . | . . . . . Installed . | . . . . . Triggered . | . . . . . Machines | -11 -10 -9 -8 -7 ---------- Run | Scr Mat Mat Mat Fac Machines Disabled . | . . . . . Max in Single Turn . | . . . . . Machines Sabotaged . | . . . . . Garrisons Compromised . | . . . . . Overloaded Fab Kills . | . . . . . Fab Network Shutdowns . | . . . . . Hacking | -11 -10 -9 -8 -7 --------- Run | Scr Mat Mat Mat Fac Machines Accessed 6 | . 5 1 . . Terminals 6 | . 5 1 . . Fabricators . | . . . . . Repair Stations . | . . . . . Recycling Units . | . . . . . Scanalyzers . | . . . . . Garrison Access . | . . . . . Total Hacks 15 | . 12 3 . . Successful 8 | . 7 1 . . Failed 7 | . 5 2 . . Catastrophic . | . . . . . Database Lockouts . | . . . . . Manual 1 | . . 1 . . Terminals 15 | . 12 3 . . Fabricators . | . . . . . Repair Stations . | . . . . . Recycling Units . | . . . . . Scanalyzers . | . . . . . Garrison Access . | . . . . . Terminal Hacks 8 | . 7 1 . . Prototype ID Bank 2 | . 2 . . . Branch Access Points 1 | . 1 . . . Disarm Traps 2 | . 2 . . . Investigation Status 1 | . 1 . . . Recall Investigation 1 | . . 1 . . Hauler Manifests 1 | . 1 . . . Fabricator Hacks . | . . . . . Repair Station Hacks . | . . . . . Recycling Unit Hacks . | . . . . . Scanalyzer . | . . . . . Garrison Access Hacks . | . . . . . Unauthorized Hacks . | . . . . . Terminals . | . . . . . Fabricators . | . . . . . Repair Stations . | . . . . . Recycling Units . | . . . . . Scanalyzers . | . . . . . Garrison Access . | . . . . . Data Cores Recovered . | . . . . . Used . | . . . . . Hacking Detections 6 | . 5 1 . . Full Trace Events 1 | . 1 . . . Feedback Events . | . . . . . Feedback Blocked . | . . . . . Robot Schematics Acquired . | . . . . . Robots Built . | . . . . . Matter . | . . . . . Time . | . . . . . Total Robot Build Rating . | . . . . . Part Schematics Acquired . | . . . . . Parts Built . | . . . . . Matter . | . . . . . Time . | . . . . . Total Part Build Rating . | . . . . . Parts Repaired . | . . . . . Time . | . . . . . Parts Recycled . | . . . . . Recycled Matter . | . . . . . Retrieved Matter . | . . . . . Retrieved Components . | . . . . . Parts Scanalyzed . | . . . . . Part Schematics Acquired . | . . . . . Parts Damaged . | . . . . . Bothacking | -11 -10 -9 -8 -7 ------------ Run | Scr Mat Mat Mat Fac Used RIF Installer . | . . . . . Robots Hacked . | . . . . . Non-combat . | . . . . . Combat . | . . . . . Robot Hacks Applied . | . . . . . Relay Couplers Released . | . . . . . Robots Rewired . | . . . . . Allies Hacked . | . . . . . Hacks Repelled . | . . . . . Allies | -11 -10 -9 -8 -7 -------- Run | Scr Mat Mat Mat Fac Total Allies . | . . . . . Largest Group . | . . . . . Highest-Rated Group . | . . . . . Highest-Rated Ally . | . . . . . Total Orders . | . . . . . Ally Attacks . | . . . . . Total Damage . | . . . . . Kills . | . . . . . Allies Corrupted . | . . . . . Allies Melted . | . . . . . Intel | -11 -10 -9 -8 -7 ------- Run | Scr Mat Mat Mat Fac Robot Analysis Total . | . . . . . Derelict Logs Recovered . | . . . . . Drone Launches . | . . . . . Drone Recoveries . | . . . . . Exploration | -11 -10 -9 -8 -7 ------------- Run | Scr Mat Mat Mat Fac Turns Passed 725 | 44 294 122 100 165 Spaces Moved 641 | 39 251 120 101 130 Core 3 | 3 . . . . Treads . | . . . . . Legs 138 | . . . 8 130 Wheels 172 | 36 136 . . . Hover 328 | . 115 120 93 . Flight . | . . . . . Fastest Speed 50 | 50 56 56 56 120 Average Speed 81 | 88 74 56 76 120 Slowest Speed 125 | 100 125 56 120 120 Overloaded Moves . | . . . . . Propulsion Burnouts . | . . . . . Robots Hopped . | . . . . . Cave-ins Triggered . | . . . . . Exploration Rate (%) 16 | 3 45 10 16 6 Regions Visited 4 Branch Regions . Pre-discovered Areas . | . . . . . Known Exits Taken 1 | . 1 . . . Unknown Exits Taken 3 | 1 . 1 1 . Scrap Searched . | . . . . . Spaces Dug . | . . . . . Terrain Destroyed . | . . . . . Melee . | . . . . . Projectile . | . . . . . AOE . | . . . . . Actions | -11 -10 -9 -8 -7 --------- Run | Scr Mat Mat Mat Fac Total 773 | 45 306 170 117 135 Wait 68 | . 21 42 5 . Move 637 | 38 250 119 100 130 Hop . | . . . . . Pick Up 7 | 1 4 2 . . Fast Attach 17 | 6 3 2 3 3 Attach 4 | . 1 . 3 . Detach 3 | . 2 1 . . Swap . | . . . . . Drop 4 | . . 2 2 . Fire 33 | . 25 2 4 2 Melee . | . . . . . Ram . | . . . . . Kick . | . . . . . Crush . | . . . . . Escape Stasis . | . . . . . Rewire . | . . . . . Trap . | . . . . . Miscellaneous . | . . . . . Route ------- -11/Scrapyard -10/Materials (discovered 3 exits: *Mat / Min x2) -9/Materials -8/Materials -7/Factory History --------- Turn | Location | Event 8 | -11/Scrapyard | Discovered new exit (range 15) 45 | -11/Scrapyard | Entered Materials 315 | -10/Materials | Build established: Mutant 329 | -10/Materials | Identified exit to Mines 334 | -10/Materials | Discovered new exit (range 9) 338 | -10/Materials | Identified exit to Materials 339 | -10/Materials | Entered another Materials area 339 | -9/Materials | Evolved 2 slots: Propulsion x1, Utility x1 458 | -9/Materials | Discovered new exit (range 5) 461 | -9/Materials | Entered another Materials area 461 | -8/Materials | Evolved 2 slots: Power x1, Utility x1 540 | -8/Materials | Discovered new exit (range 16) 561 | -8/Materials | Entered Factory 561 | -7/Factory | Evolved 2 slots: Propulsion x1, Utility x1 591 | -7/Factory | Lost 3 parts (1p2n) 637 | -7/Factory | Build established: Hacker-Mutant 726 | -7/Factory | Self-destructed Last Messages --------------- 00528_ U-05 Engineer lays Concrete. 00531_ R-06 Scavenger collects Visual Processing Unit. 00532_ U-05 Engineer lays Concrete. 00534_ K-01 Serf collects debris. 00540_ EXIT=FOUND 00546_ Penetrated by Slug. 00549_ Hover Unit destroyed. 00556_ Penetrated by Slug. 00559_ Hover Unit destroyed. 00560_ Ion Engine destroyed. PARAMETERS=PROPULSION_1,UTILITY_1 LOCATION=UNKNOWN GOAL=ESCAPE 00573_ T-07 Excavator is excavating. 00597_ Acquired Lgt. Deuterium Engine. 00666_ Acquired Targeting Computer. 00676_ Acquired Imp. Carbon-fiber Leg. 00681_ K-01 Serf pushes P-60 Hacker. 00712_ K-01 Serf collects debris. 00725_ Particle Cannon destroyed. Map ----- +----------------------------------------------------+ | ?????????????????????????????????????????????????? | | ?????????????????????????????????????????????????? | | ?????????????????????????????????????????????????? | | ??????????????????????????????????? ???????????? | | ????????????????????????????????? ???????????? | | ????????????????????????????????# ???????????? | | ????????????????????????????????# #??????????? | | ????????????????????????????????# #??????????? | | ????????????????????????????????# #??????????? | | ????????????????????????????????# #??????????? | | ????????????????????????????????+ #??????????? | | ????????????????????????????????# #??????????? | | ????????????????????????????????# ###########? | | ????????????????????????????????# # #? | | ????????????????????????????????# # """" #? | | ?????????????????????????#+#+#??# # """" ## | | ?????????????????????????# #??# # """" + | | ???????????????????????### #??# + """" ! ## | | ???????????????????????? #??# # """" #? | | ??????????????#######+##?# #??# # """" #? | | ??????????????# #?# #??# # #? | | ??????????????# #?# #??# ###########? | | ??????????????# #?# #### #??????????? | | ??????????????# #?# #??????????? | | ??????????????# ### a #??????????? | | ??????????????# sss @ #??????????? | | ??????????????# ### #??????????? | | ??????????????# ! #?# #??????????? | | ??????????????# #?# #??????????? | | ??????????????########/### #??????????? | | ??????? r ?????????? | | ??????? ????????? | | ??????? ???????? | | ???????? ??????? | | ???????? ??????? | | ?????????##########################+######???????? | | ?????????????????????????????????????????????????? | | ?????????????????????????????????????????????????? | | ?????????????????????????????????????????????????? | | ?????????????????????????????????????????????????? | | ?????????????????????????????????????????????????? | | ?????????????????????????????????????????????????? | | ?????????????????????????????????????????????????? | | ?????????????????????????????????????????????????? | | ?????????????????????????????????????????????????? | | ?????????????????????????????????????????????????? | | ?????????????????????????????????????????????????? | | ?????????????????????????????????????????????????? | | ?????????????????????????????????????????????????? | | ?????????????????????????????????????????????????? | +----------------------------------------------------+ Best States ------------- Heat Dissipation 34 Energy Generation 23 Energy Capacity 310 Matter Stores 300 Matter Capacity 300 Sight Range 16 Terrain Scan Density 10 Resistance: KI 20 Resistance: TH 20 Resistance: EX 20 Resistance: EM 20 Resistance: I 20 Resistance: S 20 Resistance: P 20 Evasion (%) 53 Targeting Accuracy 5 Offensive Hacking 20 Item Schematics ----------------- None Robot Schematics ------------------ None Fabricated ------------ Nothing Alien Tech Used ----------------- None Achievements -------------- None Challenges ------------ None Game ------ Seed VariableWeaponShotgun Manual? 0 Play Time 00:12:01 Cumulative 19.6 hours Start 2019.11.11 @ 19:07:24 End 2019.11.11 @ 19:20:05 Sessions 1 Manual Loads 0 Difficulty Adventurer Special Mode None Game No. 7 Rogue -7 Adventurer 7 Explorer 0 Win Type - Total 1 Types 0/0/1/0/0/0/0 Lore% 22 Gallery% 30 Achievement% 29 Wizard Run 0 Options --------- ASCII 0 Keyboard 1 Movement Vi Keybinds 0 Fullscreen 1 Font 18/SmallcapsGlow Map View 76x50 Tactical HUD 1 Map Filters NONE Filters NONE Steam 0 RUN: 271deddc-9a00-407d-b640-be41c0fe4a8c